[Event "*** Titled Tuesday Blitz"]
[Site "Chess.com"]
[Date "2021.04.06"]
[Round "9"]
[White "ybruned"]
[Black "Lenyas66"]
[Result "0-1"]
[WhiteElo "2346"]
[BlackElo "2515"]
[TimeControl "180+1"]
[EndTime "11:46:21 PDT"]
[Termination "Lenyas66 won by resignation"]

1. b3 {[%clk 0:03:00.9]} 1... e5 {[%clk 0:02:25.4]} 2. Bb2 {[%clk 0:02:59.7]}
2... e4 {[%clk 0:02:25.4]} 3. e3 {[%clk 0:02:56.6]} 3... Nf6 {[%clk 0:02:25.3]}
4. d3 {[%clk 0:02:56.5]} 4... d5 {[%clk 0:02:22.7]} 5. Nd2 {[%clk 0:02:49.3]}
5... exd3 {[%clk 0:02:22.2]} 6. Bxd3 {[%clk 0:02:48.2]} 6... Be7 {[%clk
0:02:21.3]} 7. Ngf3 {[%clk 0:02:46.9]} 7... O-O {[%clk 0:02:20.6]} 8. O-O {[%clk
0:02:47.3]} 8... c5 {[%clk 0:02:16.9]} 9. c4 {[%clk 0:02:46.9]} 9... Nc6 {[%clk
0:02:13.3]} 10. cxd5 {[%clk 0:02:35.2]} 10... Nxd5 {[%clk 0:02:11.5]} 11. Qb1
{[%clk 0:02:16.9]} 11... h6 {[%clk 0:02:04.7]} 12. Rd1 {[%clk 0:01:56.7]} 12...
Be6 {[%clk 0:02:00.2]} 13. Bf5 {[%clk 0:01:48.2]} 13... Qc8 {[%clk 0:01:55.8]}
14. Bxe6 {[%clk 0:01:45.3]} 14... Qxe6 {[%clk 0:01:55.8]} 15. Qe4 {[%clk
0:01:45.9]} 15... Qxe4 {[%clk 0:01:50.9]} 16. Nxe4 {[%clk 0:01:46.5]} 16... Rfd8
{[%clk 0:01:50.3]} 17. Rac1 {[%clk 0:01:34.4]} 17... b6 {[%clk 0:01:49.9]} 18.
h3 {[%clk 0:01:12.1]} 18... Ndb4 {[%clk 0:01:47.3]} 19. Rxd8+ {[%clk 0:00:56.9]}
19... Rxd8 {[%clk 0:01:45.9]} 20. a3 {[%clk 0:00:51.9]} 20... Nd3 {[%clk
0:01:44.9]} 21. Rc2 {[%clk 0:00:52.1]} 21... f5 {[%clk 0:01:38]} 22. Ned2 {[%clk
0:00:51.2]} 22... Nxb2 {[%clk 0:01:33.1]} 23. Rxb2 {[%clk 0:00:51.4]} 23... Bf6
{[%clk 0:01:14.7]} 24. Rc2 {[%clk 0:00:50.5]} 24... Rd3 {[%clk 0:01:06.5]} 25.
Kf1 {[%clk 0:00:42.8]} 25... Na5 {[%clk 0:01:05.1]} 26. b4 {[%clk 0:00:42]}
26... Nb7 {[%clk 0:00:59.3]} 27. bxc5 {[%clk 0:00:33.9]} 27... Nxc5 {[%clk
0:00:59.1]} 28. Nc4 {[%clk 0:00:32]} 28... Kf7 {[%clk 0:00:40.4]} 29. Ke2 {[%clk
0:00:32.1]} 29... Ke6 {[%clk 0:00:40.1]} 30. a4 {[%clk 0:00:26.4]} 30... Rb3
{[%clk 0:00:38.6]} 31. a5 {[%clk 0:00:24.4]} 31... Na4 {[%clk 0:00:32.8]} 32.
axb6 {[%clk 0:00:22.6]} 32... axb6 {[%clk 0:00:32.4]} 33. Ncd2 {[%clk
0:00:21.2]} 33... Nc3+ {[%clk 0:00:27.9]} 34. Kf1 {[%clk 0:00:18.8]} 34... Ra3
{[%clk 0:00:26.3]} 35. g3 {[%clk 0:00:18.8]} 35... b5 {[%clk 0:00:23.4]} 36. Rb2
{[%clk 0:00:15.3]} 36... Kd5 {[%clk 0:00:20.7]} 37. Rb3 {[%clk 0:00:13.7]} 37...
Rxb3 {[%clk 0:00:19.5]} 38. Nxb3 {[%clk 0:00:14.6]} 38... Kc4 {[%clk 0:00:19.5]}
39. Nfd2+ {[%clk 0:00:14.5]} 39... Kd3 {[%clk 0:00:18.2]} 40. Ke1 {[%clk
0:00:14.5]} 40... Be7 {[%clk 0:00:16.9]} 41. h4 {[%clk 0:00:13.6]} 41... b4
{[%clk 0:00:15.7]} 42. Nc1+ {[%clk 0:00:12.5]} 42... Kc2 {[%clk 0:00:15.3]} 43.
Ncb3 {[%clk 0:00:13.2]} 43... Ne4 {[%clk 0:00:15.3]} 44. Nxe4 {[%clk 0:00:10.7]}
44... fxe4 {[%clk 0:00:14.6]} 45. Na5 {[%clk 0:00:08.7]} 45... b3 {[%clk
0:00:13.6]} 46. Ke2 {[%clk 0:00:09.6]} 46... b2 {[%clk 0:00:13.3]} 47. Nc4
{[%clk 0:00:10.2]} 47... b1=Q {[%clk 0:00:12]} 48. Na3+ {[%clk 0:00:10.4]} 48...
Bxa3 {[%clk 0:00:10.9]} 0-1

[Event "*** Titled Tuesday Blitz"]
[Site "Chess.com"]
[Date "2021.04.06"]
[Round "9"]
[White "Sychev_Klementy"]
[Black "Didici"]
[Result "1-0"]
[WhiteElo "2883"]
[BlackElo "2655"]
[TimeControl "180+1"]
[EndTime "11:46:22 PDT"]
[Termination "Sychev_Klementy won on time"]

1. e4 {[%clk 0:03:00.9]} 1... e5 {[%clk 0:02:59.5]} 2. Nf3 {[%clk 0:02:54.8]}
2... Nc6 {[%clk 0:02:59.2]} 3. Bb5 {[%clk 0:02:51.7]} 3... a6 {[%clk 0:02:57.1]}
4. Ba4 {[%clk 0:02:51.8]} 4... Nf6 {[%clk 0:02:54.9]} 5. O-O {[%clk 0:02:47.2]}
5... b5 {[%clk 0:02:54.7]} 6. Bb3 {[%clk 0:02:46.6]} 6... Bb7 {[%clk 0:02:55.1]}
7. d3 {[%clk 0:02:28.1]} 7... Be7 {[%clk 0:02:53.1]} 8. a3 {[%clk 0:02:15.7]}
8... O-O {[%clk 0:02:50.3]} 9. Nc3 {[%clk 0:02:14.3]} 9... d6 {[%clk 0:02:35.3]}
10. Re1 {[%clk 0:02:10.2]} 10... Bc8 {[%clk 0:02:24.2]} 11. Nd5 {[%clk
0:01:57.5]} 11... Be6 {[%clk 0:02:15]} 12. c3 {[%clk 0:01:45]} 12... h6 {[%clk
0:01:48.7]} 13. a4 {[%clk 0:01:39.6]} 13... Qd7 {[%clk 0:01:43.8]} 14. h3 {[%clk
0:01:36]} 14... Bxd5 {[%clk 0:01:32]} 15. exd5 {[%clk 0:01:32.8]} 15... Na5
{[%clk 0:01:31.5]} 16. Bc2 {[%clk 0:00:53.5]} 16... Nxd5 {[%clk 0:01:22.4]} 17.
d4 {[%clk 0:00:51.7]} 17... e4 {[%clk 0:00:56]} 18. Bxe4 {[%clk 0:00:49]} 18...
c6 {[%clk 0:00:55.2]} 19. Bc2 {[%clk 0:00:43.6]} 19... Rfe8 {[%clk 0:00:49.3]}
20. Qd3 {[%clk 0:00:42.8]} 20... Nf6 {[%clk 0:00:48.9]} 21. Bf4 {[%clk
0:00:31.1]} 21... Nc4 {[%clk 0:00:38.6]} 22. b3 {[%clk 0:00:24.5]} 22... Nb6
{[%clk 0:00:37.9]} 23. a5 {[%clk 0:00:23.9]} 23... Nbd5 {[%clk 0:00:37.2]} 24.
Bd2 {[%clk 0:00:24.3]} 24... Bf8 {[%clk 0:00:30.3]} 25. c4 {[%clk 0:00:24.2]}
25... Nc7 {[%clk 0:00:30.1]} 26. Kh1 {[%clk 0:00:18.3]} 26... Rxe1+ {[%clk
0:00:27.1]} 27. Rxe1 {[%clk 0:00:18.9]} 27... Re8 {[%clk 0:00:27.3]} 28. Rg1
{[%clk 0:00:19.5]} 28... Ne4 {[%clk 0:00:19]} 29. Be3 {[%clk 0:00:19.7]} 29...
d5 {[%clk 0:00:17.5]} 30. Nd2 {[%clk 0:00:14.9]} 30... f5 {[%clk 0:00:16.5]} 31.
Nf3 {[%clk 0:00:11.9]} 31... Ne6 {[%clk 0:00:14.6]} 32. Ne5 {[%clk 0:00:11.5]}
32... Qc7 {[%clk 0:00:14.7]} 33. f3 {[%clk 0:00:10.7]} 33... c5 {[%clk
0:00:04.8]} 34. fxe4 {[%clk 0:00:07.8]} 34... fxe4 {[%clk 0:00:03.6]} 35. Qe2
{[%clk 0:00:03.3]} 35... cxd4 {[%clk 0:00:03.8]} 36. cxd5 {[%clk 0:00:03.3]}
36... Qxe5 {[%clk 0:00:02.9]} 37. dxe6 {[%clk 0:00:03.3]} 37... dxe3 {[%clk
0:00:03]} 38. Qxe3 {[%clk 0:00:03.8]} 38... Rxe6 {[%clk 0:00:02.9]} 39. b4
{[%clk 0:00:04.4]} 39... Bxb4 {[%clk 0:00:02.8]} 40. Bb3 {[%clk 0:00:04.5]}
40... Bc5 {[%clk 0:00:03]} 41. Bxe6+ {[%clk 0:00:04.8]} 41... Kh8 {[%clk
0:00:02.2]} 42. Qb3 {[%clk 0:00:04.6]} 42... Bxg1 {[%clk 0:00:01.8]} 43. Kxg1
{[%clk 0:00:05.5]} 43... e3 {[%clk 0:00:02.2]} 44. Qd5 {[%clk 0:00:04]} 1-0

[Event "*** Titled Tuesday Blitz"]
[Site "Chess.com"]
[Date "2021.04.06"]
[Round "9"]
[White "Nemsko"]
[Black "Mihnea2017"]
[Result "0-1"]
[WhiteElo "2298"]
[BlackElo "2445"]
[TimeControl "180+1"]
[EndTime "11:46:22 PDT"]
[Termination "Mihnea2017 won by checkmate"]

1. e4 {[%clk 0:03:00.9]} 1... c5 {[%clk 0:02:58.9]} 2. Nf3 {[%clk 0:02:59.7]}
2... Nc6 {[%clk 0:02:59]} 3. d4 {[%clk 0:03:00.1]} 3... cxd4 {[%clk 0:02:59.4]}
4. Nxd4 {[%clk 0:03:01]} 4... Nf6 {[%clk 0:02:59.8]} 5. Nc3 {[%clk 0:02:56.9]}
5... e5 {[%clk 0:03:00]} 6. Ndb5 {[%clk 0:02:56.5]} 6... d6 {[%clk 0:03:00.1]}
7. Bg5 {[%clk 0:02:53.7]} 7... a6 {[%clk 0:02:59.3]} 8. Na3 {[%clk 0:02:53.6]}
8... b5 {[%clk 0:02:58.9]} 9. Nd5 {[%clk 0:02:52.6]} 9... Be7 {[%clk 0:02:59]}
10. Bxf6 {[%clk 0:02:50.8]} 10... Bxf6 {[%clk 0:02:59.9]} 11. c4 {[%clk
0:02:50.4]} 11... b4 {[%clk 0:02:59.7]} 12. Nc2 {[%clk 0:02:50.9]} 12... O-O
{[%clk 0:02:56.6]} 13. h4 {[%clk 0:02:50]} 13... a5 {[%clk 0:02:55.9]} 14. b3
{[%clk 0:02:47.7]} 14... Be6 {[%clk 0:02:53.8]} 15. g3 {[%clk 0:02:44.4]} 15...
a4 {[%clk 0:02:48]} 16. Rb1 {[%clk 0:02:39.2]} 16... axb3 {[%clk 0:02:46.8]} 17.
axb3 {[%clk 0:02:40]} 17... Ra2 {[%clk 0:02:19.5]} 18. Bd3 {[%clk 0:02:35.3]}
18... Bxd5 {[%clk 0:02:03.2]} 19. cxd5 {[%clk 0:02:28.3]} 19... Nb8 {[%clk
0:02:01.4]} 20. O-O {[%clk 0:02:26.1]} 20... Qa5 {[%clk 0:01:58.8]} 21. Ne3
{[%clk 0:02:24]} 21... Bd8 {[%clk 0:01:42.7]} 22. Qg4 {[%clk 0:02:11.6]} 22...
g6 {[%clk 0:01:30.2]} 23. h5 {[%clk 0:01:53.6]} 23... Bb6 {[%clk 0:01:28.2]} 24.
Nf5 {[%clk 0:01:49.6]} 24... Bc5 {[%clk 0:01:21.3]} 25. Ne7+ {[%clk 0:01:39.1]}
25... Kh8 {[%clk 0:01:10.5]} 26. Qh4 {[%clk 0:01:18.8]} 26... Nd7 {[%clk
0:00:13.9]} 27. hxg6 {[%clk 0:01:09.7]} 27... fxg6 {[%clk 0:00:14.3]} 28. Nxg6+
{[%clk 0:01:09.9]} 28... Kg7 {[%clk 0:00:14.8]} 29. Nxf8 {[%clk 0:01:04.6]}
29... Nxf8 {[%clk 0:00:14.9]} 30. Qe7+ {[%clk 0:01:02.2]} 30... Kg8 {[%clk
0:00:15]} 31. Rbe1 {[%clk 0:00:44.9]} 31... Qb6 {[%clk 0:00:14.6]} 32. Re2
{[%clk 0:00:43.7]} 32... Ra7 {[%clk 0:00:14.4]} 33. Qf6 {[%clk 0:00:35.8]} 33...
Rf7 {[%clk 0:00:14.1]} 34. Qh4 {[%clk 0:00:32.7]} 34... Ng6 {[%clk 0:00:13.8]}
35. Qg4 {[%clk 0:00:31.2]} 35... Rg7 {[%clk 0:00:14.1]} 36. Qe6+ {[%clk
0:00:30.5]} 36... Kf8 {[%clk 0:00:10.5]} 37. Ra2 {[%clk 0:00:27.3]} 37... Qb8
{[%clk 0:00:03.2]} 38. Ra6 {[%clk 0:00:18.9]} 38... Nf4 {[%clk 0:00:03]} 39.
Qf5+ {[%clk 0:00:18]} 39... Kg8 {[%clk 0:00:03.4]} 40. Bc4 {[%clk 0:00:14]}
40... Qd8 {[%clk 0:00:03.6]} 41. Kh2 {[%clk 0:00:07.9]} 41... Rg5 {[%clk
0:00:03.8]} 42. gxf4 {[%clk 0:00:04.1]} 42... Rxf5 {[%clk 0:00:04]} 43. Rg1+
{[%clk 0:00:04.2]} 43... Kf7 {[%clk 0:00:03.7]} 44. exf5 {[%clk 0:00:05.1]}
44... exf4 {[%clk 0:00:04]} 45. Rg2 {[%clk 0:00:05]} 45... Qh4+ {[%clk
0:00:04.3]} 46. Kg1 {[%clk 0:00:05.5]} 46... f3 {[%clk 0:00:04.9]} 47. Rg3
{[%clk 0:00:05.6]} 47... Qxg3+ {[%clk 0:00:04.5]} 48. Kf1 {[%clk 0:00:05.2]}
48... Qxf2# {[%clk 0:00:05.1]} 0-1

[Event "*** Titled Tuesday Blitz"]
[Site "Chess.com"]
[Date "2021.04.06"]
[Round "9"]
[White "DamianoLew95"]
[Black "Leonid_Starozhilov"]
[Result "1-0"]
[WhiteElo "2576"]
[BlackElo "2703"]
[TimeControl "180+1"]
[EndTime "11:46:25 PDT"]
[Termination "DamianoLew95 won on time"]

1. b4 {[%clk 0:03:00.9]} 1... d5 {[%clk 0:02:59.4]} 2. f4 {[%clk 0:02:58.4]}
2... h5 {[%clk 0:02:58]} 3. Nf3 {[%clk 0:02:58.6]} 3... Nh6 {[%clk 0:02:58.2]}
4. Bb2 {[%clk 0:02:57.2]} 4... a5 {[%clk 0:02:54.8]} 5. a3 {[%clk 0:02:56.3]}
5... e6 {[%clk 0:02:45.9]} 6. b5 {[%clk 0:02:53.1]} 6... c5 {[%clk 0:02:42.3]}
7. bxc6 {[%clk 0:02:49.1]} 7... bxc6 {[%clk 0:02:31.7]} 8. e3 {[%clk 0:02:48.5]}
8... Nf5 {[%clk 0:02:29.4]} 9. Bd3 {[%clk 0:02:47.5]} 9... Ba6 {[%clk
0:02:26.4]} 10. Bxf5 {[%clk 0:02:43.7]} 10... exf5 {[%clk 0:02:25.8]} 11. d3
{[%clk 0:02:37.6]} 11... Qb6 {[%clk 0:02:22.2]} 12. Bd4 {[%clk 0:02:33.6]} 12...
c5 {[%clk 0:02:22.2]} 13. Bc3 {[%clk 0:02:32.7]} 13... Nc6 {[%clk 0:02:16.5]}
14. O-O {[%clk 0:02:31.1]} 14... d4 {[%clk 0:02:08.7]} 15. exd4 {[%clk
0:02:24.6]} 15... cxd4 {[%clk 0:02:09.6]} 16. Be1 {[%clk 0:02:13.5]} 16... Be7
{[%clk 0:02:03.3]} 17. Nbd2 {[%clk 0:02:11.7]} 17... Qc7 {[%clk 0:02:02.2]} 18.
Bh4 {[%clk 0:01:46.9]} 18... f6 {[%clk 0:01:51.9]} 19. Bg3 {[%clk 0:01:41.2]}
19... Kf7 {[%clk 0:01:46]} 20. Nh4 {[%clk 0:01:34.4]} 20... g6 {[%clk
0:01:40.7]} 21. Qf3 {[%clk 0:01:33.8]} 21... Qd7 {[%clk 0:01:27.1]} 22. Rfe1
{[%clk 0:01:29.7]} 22... Bb7 {[%clk 0:01:09.9]} 23. Nc4 {[%clk 0:01:26]} 23...
Ne5 {[%clk 0:00:52.3]} 24. fxe5 {[%clk 0:01:16]} 24... Bxf3 {[%clk 0:00:46.8]}
25. e6+ {[%clk 0:01:15.7]} 25... Qxe6 {[%clk 0:00:46.9]} 26. Rxe6 {[%clk
0:01:16.6]} 26... Kxe6 {[%clk 0:00:47.1]} 27. Nxg6 {[%clk 0:01:03.6]} 27... Bd5
{[%clk 0:00:28.4]} 28. Re1+ {[%clk 0:00:55.1]} 28... Kf7 {[%clk 0:00:28.3]} 29.
Nxe7 {[%clk 0:00:50]} 29... Bxc4 {[%clk 0:00:24.5]} 30. dxc4 {[%clk 0:00:50.9]}
30... Rhe8 {[%clk 0:00:18.4]} 31. Nxf5 {[%clk 0:00:40.3]} 31... Rxe1+ {[%clk
0:00:18.3]} 32. Bxe1 {[%clk 0:00:41.2]} 32... Rb8 {[%clk 0:00:16.2]} 33. Bxa5
{[%clk 0:00:37.5]} 33... Rb1+ {[%clk 0:00:13.8]} 34. Kf2 {[%clk 0:00:36.2]}
34... Ra1 {[%clk 0:00:13.7]} 35. Bb4 {[%clk 0:00:35.7]} 35... Rd1 {[%clk
0:00:12.6]} 36. c5 {[%clk 0:00:29.8]} 36... Ke6 {[%clk 0:00:12.3]} 37. c6 {[%clk
0:00:18.6]} 37... d3 {[%clk 0:00:11.4]} 38. Ne3 {[%clk 0:00:15.7]} 38... dxc2
{[%clk 0:00:10.6]} 39. Nxc2 {[%clk 0:00:15.3]} 39... Rc1 {[%clk 0:00:08.4]} 40.
Nd4+ {[%clk 0:00:15.4]} 40... Kd5 {[%clk 0:00:08.8]} 41. Ke3 {[%clk 0:00:11.8]}
41... h4 {[%clk 0:00:06.6]} 42. Ba5 {[%clk 0:00:09.5]} 42... Rc4 {[%clk
0:00:05.2]} 43. c7 {[%clk 0:00:09.2]} 43... Kd6 {[%clk 0:00:04]} 44. Nb5+ {[%clk
0:00:08.5]} 44... Kd7 {[%clk 0:00:03.9]} 45. Na7 {[%clk 0:00:08.1]} 45... Rc2
{[%clk 0:00:02.2]} 46. c8=Q+ {[%clk 0:00:07.7]} 1-0

[Event "*** Titled Tuesday Blitz"]
[Site "Chess.com"]
[Date "2021.04.06"]
[Round "9"]
[White "Alexander_Zubov"]
[Black "Keks2017"]
[Result "1-0"]
[WhiteElo "2976"]
[BlackElo "2568"]
[TimeControl "180+1"]
[EndTime "11:46:26 PDT"]
[Termination "Alexander_Zubov won by checkmate"]

1. d4 {[%clk 0:03:00.9]} 1... Nf6 {[%clk 0:02:59.7]} 2. c4 {[%clk 0:03:00.2]}
2... d6 {[%clk 0:02:59.5]} 3. Nf3 {[%clk 0:02:59.4]} 3... Nbd7 {[%clk 0:02:59]}
4. Nc3 {[%clk 0:02:59.3]} 4... e5 {[%clk 0:02:57.8]} 5. e4 {[%clk 0:02:59.7]}
5... Be7 {[%clk 0:02:57.1]} 6. Be2 {[%clk 0:02:59.7]} 6... O-O {[%clk
0:02:56.9]} 7. O-O {[%clk 0:02:59.7]} 7... c6 {[%clk 0:02:56.9]} 8. Re1 {[%clk
0:02:55.5]} 8... Qc7 {[%clk 0:02:56.9]} 9. Bf1 {[%clk 0:02:54.1]} 9... Re8
{[%clk 0:02:56.3]} 10. b3 {[%clk 0:02:30.5]} 10... b6 {[%clk 0:02:54.4]} 11. Bb2
{[%clk 0:02:29.7]} 11... Bb7 {[%clk 0:02:54.3]} 12. Rc1 {[%clk 0:02:29.6]} 12...
a6 {[%clk 0:02:54.3]} 13. d5 {[%clk 0:02:23.2]} 13... c5 {[%clk 0:02:53.8]} 14.
g3 {[%clk 0:02:22.5]} 14... Nf8 {[%clk 0:02:49.8]} 15. Nh4 {[%clk 0:02:21.5]}
15... Ng6 {[%clk 0:02:42.5]} 16. Nf5 {[%clk 0:02:20.4]} 16... Bf8 {[%clk
0:02:42.5]} 17. a3 {[%clk 0:02:17.7]} 17... Bc8 {[%clk 0:02:42.3]} 18. Qf3
{[%clk 0:02:13.7]} 18... Kh8 {[%clk 0:02:29.1]} 19. Rc2 {[%clk 0:02:06.7]} 19...
Ng8 {[%clk 0:02:28]} 20. Bc1 {[%clk 0:02:00.3]} 20... Bd7 {[%clk 0:02:27.6]} 21.
h4 {[%clk 0:01:57.6]} 21... Rab8 {[%clk 0:02:21.3]} 22. Bd2 {[%clk 0:01:49.4]}
22... N6e7 {[%clk 0:02:11.3]} 23. Ne3 {[%clk 0:01:46.8]} 23... f6 {[%clk
0:02:04.5]} 24. b4 {[%clk 0:01:42.8]} 24... Nc8 {[%clk 0:01:55.7]} 25. Rb1
{[%clk 0:01:41.2]} 25... Na7 {[%clk 0:01:55.3]} 26. Rcb2 {[%clk 0:01:40]} 26...
b5 {[%clk 0:01:39.4]} 27. Bd3 {[%clk 0:01:29.3]} 27... Rec8 {[%clk 0:01:34.8]}
28. Qe2 {[%clk 0:01:27.7]} 28... bxc4 {[%clk 0:01:26.7]} 29. Bxc4 {[%clk
0:01:23.2]} 29... cxb4 {[%clk 0:01:25.5]} 30. axb4 {[%clk 0:01:22.8]} 30... Nb5
{[%clk 0:01:24.2]} 31. Nxb5 {[%clk 0:01:19.3]} 31... Bxb5 {[%clk 0:01:23.4]} 32.
Bxb5 {[%clk 0:01:13.8]} 32... axb5 {[%clk 0:01:15.1]} 33. Ra1 {[%clk 0:01:13.1]}
33... Ne7 {[%clk 0:01:09]} 34. Ra5 {[%clk 0:01:10.4]} 34... Qd7 {[%clk
0:01:02.5]} 35. Qd3 {[%clk 0:01:06.1]} 35... g6 {[%clk 0:00:57.6]} 36. Rba2
{[%clk 0:01:01.1]} 36... Rb7 {[%clk 0:00:55.5]} 37. Ra8 {[%clk 0:00:56.6]} 37...
Kg8 {[%clk 0:00:49.4]} 38. Nd1 {[%clk 0:00:49.8]} 38... Kf7 {[%clk 0:00:35.2]}
39. Nc3 {[%clk 0:00:47.4]} 39... Rc4 {[%clk 0:00:31.9]} 40. Rb2 {[%clk 0:00:33]}
40... Rbc7 {[%clk 0:00:28.5]} 41. Ra5 {[%clk 0:00:28.9]} 41... Rd4 {[%clk
0:00:20.5]} 42. Qe2 {[%clk 0:00:27.6]} 42... Rb7 {[%clk 0:00:16.4]} 43. Nxb5
{[%clk 0:00:18.4]} 43... Rxe4 {[%clk 0:00:13.6]} 44. Nxd6+ {[%clk 0:00:14.8]}
44... Qxd6 {[%clk 0:00:13.6]} 45. Qxe4 {[%clk 0:00:15.3]} 45... f5 {[%clk
0:00:13.8]} 46. Qc4 {[%clk 0:00:14.5]} 46... Bg7 {[%clk 0:00:11.4]} 47. Qc5
{[%clk 0:00:09.5]} 47... Qd7 {[%clk 0:00:10.1]} 48. d6 {[%clk 0:00:09.9]} 48...
Nc6 {[%clk 0:00:10.1]} 49. Qd5+ {[%clk 0:00:09.9]} 49... Kf6 {[%clk 0:00:09.5]}
50. Bg5# {[%clk 0:00:08.9]} 1-0

[Event "*** Titled Tuesday Blitz"]
[Site "Chess.com"]
[Date "2021.04.06"]
[Round "9"]
[White "BigAl"]
[Black "Skatchkov_V"]
[Result "1-0"]
[WhiteElo "2511"]
[BlackElo "2603"]
[TimeControl "180+1"]
[EndTime "11:46:26 PDT"]
[Termination "BigAl won by checkmate"]

1. Nf3 {[%clk 0:03:00.9]} 1... d5 {[%clk 0:02:59.1]} 2. g3 {[%clk 0:03:01]} 2...
g6 {[%clk 0:02:59.2]} 3. Bg2 {[%clk 0:03:01.6]} 3... Bg7 {[%clk 0:03:00.1]} 4.
O-O {[%clk 0:03:02.4]} 4... e5 {[%clk 0:03:00.9]} 5. d3 {[%clk 0:03:02.5]} 5...
Ne7 {[%clk 0:03:00.6]} 6. Nbd2 {[%clk 0:03:02]} 6... O-O {[%clk 0:03:00.4]} 7.
e4 {[%clk 0:03:02.7]} 7... Nbc6 {[%clk 0:03:00.9]} 8. a4 {[%clk 0:02:59.5]} 8...
a5 {[%clk 0:02:57.6]} 9. exd5 {[%clk 0:02:58.5]} 9... Nxd5 {[%clk 0:02:58.4]}
10. Re1 {[%clk 0:02:54.5]} 10... Re8 {[%clk 0:02:58.8]} 11. Nc4 {[%clk
0:02:53.7]} 11... Bg4 {[%clk 0:02:58.3]} 12. h3 {[%clk 0:02:52.8]} 12... Bxf3
{[%clk 0:02:49]} 13. Bxf3 {[%clk 0:02:42.4]} 13... Nd4 {[%clk 0:02:49.2]} 14.
Bg2 {[%clk 0:02:42.7]} 14... c6 {[%clk 0:02:48.4]} 15. c3 {[%clk 0:02:37.4]}
15... Nf5 {[%clk 0:02:45]} 16. Qb3 {[%clk 0:02:30.3]} 16... Rb8 {[%clk 0:02:41]}
17. h4 {[%clk 0:02:21.4]} 17... h6 {[%clk 0:02:37.3]} 18. Bd2 {[%clk 0:02:04.8]}
18... Nd6 {[%clk 0:02:10.1]} 19. Rad1 {[%clk 0:02:04.1]} 19... Nxc4 {[%clk
0:02:00.4]} 20. dxc4 {[%clk 0:02:02.6]} 20... Qb6 {[%clk 0:02:00.8]} 21. Qc2
{[%clk 0:01:54.7]} 21... Ne7 {[%clk 0:02:01.5]} 22. Be3 {[%clk 0:01:49.2]} 22...
Qc7 {[%clk 0:02:01.1]} 23. Qc1 {[%clk 0:01:24.6]} 23... Kh7 {[%clk 0:02:00.4]}
24. h5 {[%clk 0:01:24.7]} 24... Rbd8 {[%clk 0:01:52.2]} 25. hxg6+ {[%clk
0:01:24.7]} 25... fxg6 {[%clk 0:01:52.4]} 26. Be4 {[%clk 0:01:24.5]} 26... Nf5
{[%clk 0:01:47.4]} 27. Qc2 {[%clk 0:01:23.5]} 27... Qf7 {[%clk 0:01:46.5]} 28.
Bb6 {[%clk 0:01:20.1]} 28... Ra8 {[%clk 0:01:29.6]} 29. b3 {[%clk 0:01:19.5]}
29... Ra6 {[%clk 0:01:27.8]} 30. Bc5 {[%clk 0:01:16.9]} 30... b6 {[%clk
0:01:27.7]} 31. Be3 {[%clk 0:01:13.9]} 31... c5 {[%clk 0:01:27.9]} 32. Bc1
{[%clk 0:01:06.5]} 32... Ra7 {[%clk 0:01:27.6]} 33. Rd5 {[%clk 0:01:03.7]} 33...
Rae7 {[%clk 0:01:22.3]} 34. Red1 {[%clk 0:01:01.3]} 34... Rf8 {[%clk 0:01:22.8]}
35. R5d3 {[%clk 0:00:58.1]} 35... Qe6 {[%clk 0:01:21.5]} 36. Rf3 {[%clk
0:00:56.9]} 36... Ref7 {[%clk 0:01:14.4]} 37. Bd5 {[%clk 0:00:52.1]} 37... Qe7
{[%clk 0:01:00.8]} 38. Bxf7 {[%clk 0:00:52.3]} 38... Rxf7 {[%clk 0:01:01.7]} 39.
Qe4 {[%clk 0:00:46.8]} 39... Qe6 {[%clk 0:01:01.1]} 40. Qd5 {[%clk 0:00:43.3]}
40... Qe7 {[%clk 0:00:59.7]} 41. Qe4 {[%clk 0:00:42.5]} 41... Qe6 {[%clk
0:00:59.9]} 42. Rd5 {[%clk 0:00:42.5]} 42... Re7 {[%clk 0:00:43.5]} 43. Rfd3
{[%clk 0:00:42.4]} 43... Rf7 {[%clk 0:00:40.6]} 44. Rd1 {[%clk 0:00:36.9]} 44...
Qf6 {[%clk 0:00:40.4]} 45. Be3 {[%clk 0:00:33.8]} 45... h5 {[%clk 0:00:38.2]}
46. Rd7 {[%clk 0:00:33.7]} 46... Rf8 {[%clk 0:00:35.8]} 47. Kg2 {[%clk 0:00:27]}
47... Kh8 {[%clk 0:00:35.2]} 48. Rh1 {[%clk 0:00:26.3]} 48... Bh6 {[%clk
0:00:33]} 49. Bxh6 {[%clk 0:00:14.2]} 49... Nxg3 {[%clk 0:00:33.1]} 50. Qe3
{[%clk 0:00:09.9]} 50... Nxh1 {[%clk 0:00:32.3]} 51. Bg7+ {[%clk 0:00:09.7]}
51... Qxg7 {[%clk 0:00:31.7]} 52. Rxg7 {[%clk 0:00:10.6]} 52... Nxf2 {[%clk
0:00:25.3]} 53. Qh6# {[%clk 0:00:10.2]} 1-0